bitfinex/quotes_SOLUSD_20240530
["timestamp","ask_amount","ask_price","bid_price","bid_amount"]
[1717030940742,53.5703,168.35,168.3,2.1983]
[1717030940947,4.3959,168.34,148.17,1.05269738]
[1717030941134,2.1981,168.33,168.24,6.5975]
[1717030941461,2.1981,168.33,168.29,2.1985]
[1717030941661,2.1981,168.33,168.28,2.1986]
[1717030941846,6.0196,168.33,168.26,4.3978]
[1717030942047,6.0196,168.33,168.3,2.1984]
[1717030942246,6.0196,168.33,168.29,2.1985]
[1717030942441,2.1978,168.35,168.31,2.1983]
[1717030942663,41.9713,168.39,168.27,6.5963]
[1717030942862,8.6689,168.37,168.32,2.1981]
[1717030943050,2.1976,168.36,168.31,2.1982]
[1717030943244,2.1978,168.35,168.3,2.1984]
[1717030943445,6.4713,168.35,168.29,2.1985]
[1717030943644,8.6693,168.34,168.29,2.1985]
[1717030943844,6.5008,168.33,168.29,2.1985]
[1717030944140,8.6989,168.33,168.29,2.1985]
[1717030944346,8.6989,168.33,168.28,8.9886]
[1717030944657,8.6989,168.33,168.29,2.1985]
[1717030945156,6.3374,168.31,168.27,2.1987]
[1717030945547,6.3374,168.31,168.28,2.1986]
[1717030946635,8.9881,168.33,168.28,2.1986]
[1717030947038,6.6001,168.32,168.28,2.1986]
[1717030947257,8.7983,168.32,168.28,2.1986]
[1717030948466,15.5883,168.32,168.28,2.1986]
[1717030952143,8.7983,168.32,168.28,2.1986]
[1717030952349,6.79,168.31,168.28,2.1986]
[1717030953264,6.6001,168.32,168.28,2.1986]
[1717030953466,15.5883,168.32,168.28,2.1986]
[1717030953646,42.1023,168.32,168.28,2.1987]
[1717030953839,42.1023,168.32,168.28,2.1986]
[1717030954064,44.3005,168.32,168.27,2.1988]
[1717030954259,2.1983,168.31,168.27,2.1988]
[1717030954660,8.9883,168.31,168.27,2.1988]
[1717030954864,8.9883,168.31,168.26,2.1989]
[1717030955271,15.5986,168.31,168.26,2.1989]
[1717030957053,35.5,168.34,168.25,6.5971]
[1717030957256,35.5,168.34,168.29,2.1984]
[1717030958066,2.198,168.33,168.29,2.1984]
[1717030959081,2.1979,168.34,168.29,2.1984]
[1717030959372,2.1979,168.34,168.3,2.1984]
[1717030959580,2.1979,168.34,168.29,2.1985]
[1717030959962,2.198,168.33,168.29,2.1985]
[1717030963571,8.988,168.33,168.29,2.1985]
[1717030964385,2.198,168.33,168.29,2.1985]
[1717030966686,51.79,168.34,168.28,2.1986]
[1717030966870,2.1981,168.32,168.28,2.1986]
[1717030967890,45.0,168.32,168.24,4.3983]
[1717030968187,2.1983,168.31,168.27,2.1988]
[1717030968380,2.1984,168.3,168.26,2.1989]
[1717030968685,2.1983,168.31,168.27,2.1988]
[1717030969097,2.1983,168.31,168.26,8.9889]
[1717030969465,2.1984,168.3,168.26,8.9889]
[1717030969688,2.1984,168.3,168.26,2.1989]
[1717030970684,8.9883,168.31,168.25,6.79]
[1717030970891,2.1983,168.31,168.27,2.1988]
[1717030971081,89.4882,168.32,168.28,2.1987]
[1717030971392,2.1983,168.31,168.27,2.1987]
[1717030971683,2.1983,168.31,168.26,8.9889]
[1717030971891,2.1983,168.31,168.27,2.1988]
[1717030972876,2.1982,168.32,168.27,2.1988]
[1717030973174,2.1983,168.31,168.27,2.1988]
[1717030973686,8.9883,168.31,168.26,2.1989]
[1717030975591,8.9883,168.31,168.25,6.79]
[1717030975790,8.9883,168.31,168.26,2.1988]
[1717030976572,8.3178,168.3,168.26,2.1988]
[1717030976773,8.3178,168.3,168.22,19.7945]
[1717030976774,2.1987,168.28,168.23,2.1992]
[1717030977001,2.1987,168.28,168.2,18.4617704]
[1717030977002,2.1994,168.23,168.2,7.4635704]
[1717030977184,6.79,168.26,168.2,7.5927704]
[1717030977500,2.199,168.26,168.22,2.1994]
[1717030977677,8.9889,168.27,168.22,2.1994]
[1717030978083,2.1989,168.26,168.21,2.1995]
[1717030978303,42.29,168.26,168.2,0.8027704]
[1717030978771,42.29,168.26,168.21,2.1996]
[1717030978772,2.1991,168.25,168.21,2.1996]
[1717030979207,2.1989,168.26,168.21,2.1996]
[1717030979376,8.9889,168.26,168.21,2.1996]
[1717030979792,8.9889,168.26,168.2,0.8027704]
[1717030979793,2.1991,168.25,168.2,0.8027704]
[1717030979994,2.1991,168.25,168.2,7.5927704]
[1717030980185,2.1991,168.25,168.2,9.7923704]
[1717030980588,42.29,168.26,168.21,2.1996]
[1717030980784,44.489,168.26,168.21,2.1996]
[1717030981184,8.9891,168.25,168.2,3.0024704]
[1717030981412,2.1992,168.24,168.2,3.0024704]
[1717030981719,8.9891,168.25,168.2,3.0024704]
[1717030982083,8.9891,168.25,168.21,2.1996]
[1717030982498,8.9891,168.25,168.2,3.0024704]
[1717030983109,2.1991,168.25,168.2,3.0024704]
[1717030983618,44.489,168.26,168.21,2.1996]
[1717030983909,8.9891,168.25,168.2,3.0024704]
[1717030985202,2.1992,168.24,168.2,3.0024704]
[1717030985499,2.1992,168.24,168.2,0.8027704]
[1717030986103,2.1991,168.25,168.2,3.0024704]
[1717030986309,8.9891,168.25,168.2,3.0024704]
[1717030987401,35.5,168.25,168.2,3.0024704]
[1717030987603,51.79,168.24,168.2,3.0024704]
[1717030988008,53.9892,168.24,168.2,0.8027704]
[1717030988505,89.4892,168.24,168.2,0.8027704]
[1717030988800,8.9893,168.23,168.2,0.8027704]
[1717030990883,8.9895,168.22,168.2,0.8027704]
[1717030991309,2.1996,168.21,168.2,0.8027704]
[1717030992087,82.6996,168.21,168.2,0.8027704]
[1717030998510,89.4896,168.21,168.2,0.8027704]
[1717030999012,93.8888,168.21,168.2,0.8027704]
[1717030999201,107.0504,168.21,168.2,0.8027704]
[1717030999508,115.8489,168.21,168.2,0.8027704]
[1717031001101,145.8489,168.21,168.2,0.8027704]
[1717031001504,139.2501,168.21,168.2,0.8027704]
[1717031002823,138.7501,168.21,168.2,0.8027704]
[1717031002994,145.3489,168.21,168.2,0.8027704]
[1717031003311,2.2003,168.16,168.13,0.3632338]
[1717031003526,8.9903,168.16,168.13,0.3632338]
[1717031004304,37.7004,168.15,168.13,0.3632338]
[1717031004822,2.2004,168.15,168.13,0.3632338]
[1717031005507,2.2005,168.14,168.13,0.3632338]
[1717031006620,30.0,168.21,168.13,23.5385338]
[1717031006815,253.5,168.46,168.13,23.5385338]
[1717031006816,6.79,168.27,168.2,6.79]
[1717031007124,6.79,168.27,168.18,6.6119]
[1717031007125,6.79,168.24,168.18,6.6119]
[1717031007292,6.79,168.24,168.21,2.1995]
[1717031007498,6.79,168.25,168.21,2.1995]
[1717031008222,2.1988,168.27,168.21,2.1995]
[1717031008404,6.79,168.26,168.21,2.1995]
[1717031008737,6.79,168.26,168.21,8.4626]
[1717031009102,6.79,168.26,168.22,2.1994]
[1717031009499,4.3966,168.31,168.21,6.2631]
[1717031009500,2.1992,168.24,168.21,6.2631]
[1717031009703,6.79,168.25,168.21,6.2631]
[1717031009919,2.199,168.26,168.2,15.2528]
[1717031010103,8.989,168.26,168.2,15.2528]
[1717031010299,2.1991,168.25,168.2,8.4628]
[1717031010608,6.79,168.25,168.2,8.4628]
[1717031011098,6.5958,168.29,168.16,6.5433]
[1717031011299,2.1992,168.24,168.18,2.1999]
[1717031011513,2.1993,168.23,168.16,6.5433]
[1717031011702,2.1992,168.25,168.17,6.79]
[1717031011908,2.1992,168.24,168.18,2.1999]
[1717031012214,2.1991,168.25,168.19,2.1998]
[1717031014118,2.1992,168.24,168.19,2.1998]
[1717031014926,2.1991,168.25,168.19,2.1998]
[1717031015117,2.1991,168.25,168.2,2.1997]
[1717031016525,8.9892,168.24,168.19,2.1998]
[1717031017430,2.1991,168.25,168.2,2.1997]
[1717031017630,6.79,168.24,168.2,2.1997]
[1717031017837,2.1991,168.25,168.2,2.1997]
[1717031018216,2.1991,168.25,168.19,2.1998]
[1717031018423,49.3975,168.28,168.13,4.7643338]
[1717031018424,6.0998,168.27,168.13,4.7643338]
[1717031018612,2.1997,168.21,168.15,2.2003]
[1717031018812,2.1997,168.2,168.15,2.2003]
[1717031019014,2.1996,168.21,168.16,2.2002]
[1717031019939,2.1998,168.2,168.15,2.2003]
[1717031020410,2.1999,168.19,168.13,9.3537338]
[1717031021017,2.1999,168.19,168.14,2.2005]
[1717031022248,28.7972,168.24,168.14,13.1803]
[1717031022419,6.79,168.23,168.17,6.79]
[1717031022927,6.79,168.23,168.19,2.1998]
[1717031023137,6.79,168.22,168.18,2.1999]
[1717031023527,6.79,168.22,168.17,2.2001]
[1717031023733,2.1994,168.23,168.17,2.2001]
[1717031024116,2.1994,168.23,168.18,2.1999]
[1717031024732,2.1994,168.23,168.17,2.2001]
[1717031024937,6.79,168.22,168.17,2.2001]
[1717031025126,2.1994,168.23,168.18,2.2]
[1717031025330,25.8898,168.27,168.18,2.2]
[1717031025331,2.1991,168.25,168.2,2.1997]
[1717031025519,2.199,168.26,168.19,6.79]
[1717031025710,6.79,168.25,168.19,6.79]
[1717031026116,2.199,168.26,168.19,6.79]
[1717031026315,8.989,168.26,168.21,2.1995]
[1717031026511,2.1988,168.27,168.21,2.1995]
[1717031026734,8.989,168.26,168.21,2.1995]
[1717031027342,2.1988,168.27,168.21,2.1995]
[1717031027544,4.3971,168.29,168.23,2.1992]
[1717031027545,2.1986,168.29,168.23,2.1992]
[1717031028055,6.79,168.27,168.22,2.1994]
[1717031028230,31.1865,168.32,168.23,6.79]
[1717031028231,2.1985,168.3,168.23,6.79]
[1717031028525,2.198,168.33,168.25,6.79]
[1717031028731,6.2445,168.35,168.27,2.1987]
[1717031028732,2.1982,168.32,168.27,2.1987]
[1717031029041,6.79,168.31,168.26,2.1989]
[1717031029641,8.9883,168.31,168.26,2.1989]
[1717031029946,2.1983,168.31,168.26,2.1989]
[1717031030851,2.1983,168.31,168.25,8.989]
[1717031031044,8.9883,168.31,168.26,2.1989]
[1717031031353,4.3959,168.34,168.26,6.0295]
[1717031031544,2.1984,168.3,168.26,6.0295]
[1717031032655,6.79,168.29,168.25,2.199]
[1717031032955,6.79,168.29,168.23,6.79]
[1717031033147,6.79,168.29,168.25,2.199]
[1717031033350,2.1983,168.31,168.25,2.199]
[1717031033556,6.79,168.3,168.25,8.7889]
[1717031033853,2.1982,168.32,168.26,2.1989]
[1717031034343,2.1983,168.31,168.25,13.3799]
[1717031034549,2.1983,168.31,168.25,15.5789]
[1717031035359,2.1983,168.31,168.26,2.1989]
[1717031036640,2.1982,168.32,168.26,15.2963]
[1717031036848,2.1982,168.32,168.27,2.1988]
[1717031037151,8.9882,168.32,168.27,8.5062]
[1717031037339,2.1982,168.32,168.27,8.5062]
[1717031037543,2.1982,168.32,168.27,6.3074]
[1717031038255,8.9882,168.32,168.27,6.3074]
[1717031038434,2.1983,168.31,168.27,6.3074]
[1717031039155,15.8308,168.37,168.28,6.6424]
[1717031039156,4.3951,168.37,168.28,6.6424]
[1717031039361,6.79,168.34,168.28,15.631]
[1717031039744,2.198,168.33,168.28,15.631]
[1717031040053,2.1978,168.35,168.3,6.4681]
[1717031040360,2.1975,168.37,168.32,6.79]
[1717031040560,2.1976,168.36,168.29,6.4681]
[1717031040767,2.1976,168.36,168.31,8.9882]
[1717031041060,2.1976,168.36,168.31,8.9883]
[1717031041243,2.1975,168.37,168.31,15.5243]
[1717031041440,2.1975,168.37,168.32,6.79]
[1717031041645,2.1976,168.36,168.31,2.1983]
[1717031041846,6.79,168.32,168.23,27.4185]
[1717031042066,26.2702,168.39,168.3,6.79]
[1717031042067,4.3949,168.38,168.3,6.79]
[1717031042248,2.1978,168.35,168.3,2.1984]
[1717031042457,6.79,168.34,168.29,2.1984]
[1717031042758,6.79,168.34,168.3,2.1984]
[1717031042959,6.79,168.34,168.29,8.4091]
[1717031043157,8.9879,168.34,168.29,8.4091]
[1717031043456,6.79,168.32,168.28,2.1986]
[1717031043841,8.988,168.33,168.28,2.1986]
[1717031044043,6.79,168.33,168.28,2.1986]
[1717031044649,8.988,168.33,168.28,2.1986]
[1717031044855,6.79,168.4,168.25,6.3691]
[1717031044856,6.79,168.32,168.25,6.3691]
[1717031045363,8.9882,168.32,168.27,2.1988]
[1717031045943,4.3956,168.35,168.26,2.1989]
[1717031045944,8.9883,168.31,168.26,2.1989]
[1717031046150,2.1983,168.31,168.26,2.1989]
[1717031046661,2.1983,168.31,168.25,2.199]
[1717031046961,2.1983,168.31,168.26,2.1989]
[1717031048066,2.1984,168.3,168.25,8.989]
[1717031048568,2.1983,168.31,168.25,8.989]
[1717031048870,2.1983,168.31,168.26,2.1989]
[1717031049047,8.9883,168.31,168.26,2.1989]
[1717031052462,2.1981,168.33,168.28,2.1987]
[1717031052652,2.1982,168.32,168.27,2.1987]
[1717031053161,4.3959,168.34,168.25,2.1989]
[1717031053361,45.0,168.33,168.25,8.9889]
[1717031053569,2.1983,168.31,168.26,2.1989]
[1717031055453,2.1984,168.3,168.25,8.989]
[1717031055670,2.1984,168.3,168.26,2.1989]
[1717031056164,2.1984,168.3,168.26,8.9889]
[1717031056559,2.1983,168.31,168.26,2.1989]
[1717031056753,2.1983,168.31,168.26,8.9889]
[1717031058875,2.1983,168.31,168.26,2.1989]
[1717031060677,2.1984,168.3,168.26,2.1989]
[1717031060978,4.3959,168.34,168.26,2.1989]
[1717031061159,45.0,168.33,168.26,2.1989]
[1717031061872,2.1984,168.31,168.26,2.1989]
[1717031062881,2.1984,168.3,168.25,8.989]
[1717031063478,2.1984,168.3,168.25,2.199]
[1717031063953,2.1984,168.3,168.24,6.79]
[1717031063954,2.1986,168.29,168.24,8.9892]
[1717031066166,2.1986,168.29,168.22,4.3987]
[1717031066167,10.6951,168.31,168.23,2.1993]
[1717031066372,6.79,168.26,168.21,2.1995]
[1717031066582,8.989,168.26,168.21,2.1996]
[1717031066969,4.3966,168.31,168.24,6.79]
[1717031067168,2.1987,168.28,168.24,6.79]
[1717031067993,6.79,168.3,168.24,6.79]
[1717031067994,2.1986,168.29,168.24,8.9891]
[1717031068692,6.79,168.3,168.24,8.9891]
[1717031068693,2.1987,168.28,168.24,8.9891]
[1717031068885,2.1988,168.27,168.21,6.2388]
[1717031069063,2.1988,168.27,168.22,8.9894]
[1717031069774,8.9887,168.28,168.23,2.1993]
[1717031070376,6.79,168.27,168.23,2.1993]
[1717031070575,6.79,168.27,168.24,2.1992]
[1717031071171,2.1987,168.28,168.24,2.1992]
[1717031071399,6.79,168.27,168.21,6.79]
[1717031071582,6.79,168.27,168.23,2.1993]
[1717031072194,8.9887,168.28,168.23,2.1993]
[1717031073077,8.9888,168.27,168.23,2.1993]
[1717031073279,8.9888,168.27,168.22,2.1994]
[1717031074489,8.9889,168.26,168.21,2.1995]
[1717031075197,8.9889,168.26,168.22,2.1994]
[1717031075399,6.79,168.26,168.21,2.1995]
[1717031075896,8.989,168.26,168.21,2.1995]
[1717031076313,2.1991,168.25,168.21,2.1995]
[1717031076477,8.989,168.26,168.21,2.1995]
[1717031077997,2.1991,168.25,168.21,2.1995]
[1717031078793,8.9891,168.25,168.2,2.1997]
[1717031078993,2.1992,168.24,168.2,2.1997]
[1717031079903,8.9891,168.25,168.2,2.1997]
[1717031082497,8.9891,168.25,168.21,2.1996]
[1717031082811,6.79,168.25,168.21,2.1996]
[1717031083482,8.989,168.26,168.21,2.1996]
[1717031083679,2.1991,168.25,168.2,8.9897]
[1717031084080,2.1991,168.25,168.21,2.1996]
[1717031086311,6.79,168.23,168.16,4.4004]
[1717031086609,6.79,168.23,168.19,2.1998]
[1717031086787,20.0,168.22,168.19,2.1998]
[1717031087200,22.1995,168.22,168.18,2.1999]
[1717031088305,2.1995,168.22,168.18,2.1999]
[1717031089005,22.1995,168.22,168.18,2.1999]
[1717031089512,2.1996,168.21,168.17,8.9901]
[1717031090793,22.1995,168.22,168.18,2.2]
[1717031091008,26.79,168.22,168.14,4.4009]
[1717031091201,26.79,168.22,168.17,2.2001]
[1717031091202,2.1996,168.21,168.17,2.2001]
[1717031092096,2.1997,168.2,168.17,2.2001]
[1717031092318,2.1996,168.21,168.17,2.2001]
[1717031094122,2.1996,168.21,168.18,2.2]
[1717031094295,2.1996,168.21,168.17,2.2]
[1717031095614,22.1995,168.22,168.18,2.2]
[1717031095804,2.1995,168.22,168.18,2.1999]
[1717031096920,2.1994,168.23,168.19,2.1998]
[1717031097908,2.1995,168.22,168.18,2.1999]
[1717031099623,2.1994,168.23,168.19,2.1998]
[1717031100131,2.1995,168.22,168.18,2.1999]
[1717031100322,2.1994,168.23,168.18,2.1999]
[1717031100629,2.1995,168.22,168.18,2.1999]
[1717031101424,2.1996,168.21,168.17,2.2]
[1717031101727,2.1995,168.22,168.18,2.2]
[1717031101917,25.2794,168.3,168.19,6.79]
[1717031102230,2.199,168.26,168.22,2.1994]
[1717031102527,2.1987,168.28,168.24,2.1992]
[1717031103223,2.1989,168.26,168.22,8.9894]
[1717031103610,2.1988,168.27,168.23,2.1993]
[1717031104243,6.79,168.26,168.2,2.1997]
[1717031104545,2.1992,168.25,168.21,2.1996]
[1717031104722,2.1992,168.24,168.2,8.9897]
[1717031105035,2.1991,168.25,168.2,8.9897]
[1717031105242,2.1991,168.25,168.21,2.1996]
[1717031106337,2.1992,168.24,168.2,8.9897]
[1717031106529,2.1992,168.24,168.2,2.1997]
[1717031106722,2.1991,168.25,168.2,2.1997]
[1717031107035,2.1991,168.25,168.21,2.1996]
[1717031107443,2.1991,168.25,168.21,8.9896]
[1717031107612,2.1991,168.25,168.21,2.1996]
[1717031108731,2.1992,168.24,168.2,8.9897]
[1717031109237,2.1992,168.24,168.2,2.1997]
[1717031109528,20.0,168.27,168.2,2.1997]
[1717031109529,2.1991,168.25,168.2,2.1997]
[1717031109717,8.9891,168.25,168.2,2.1997]
[1717031110333,8.9891,168.25,168.21,2.1995]
[1717031110538,2.1991,168.25,168.21,2.1995]
[1717031111316,2.1994,168.23,168.18,2.1999]
[1717031111531,2.1994,168.23,168.19,2.1998]
[1717031111738,8.9894,168.23,168.19,2.1998]
[1717031112132,2.1994,168.23,168.19,2.1998]
[1717031113430,2.1995,168.22,168.18,8.9899]
[1717031114945,2.1995,168.22,168.18,2.1999]
[1717031116235,2.1996,168.21,168.17,2.2001]
[1717031116945,2.1995,168.22,168.18,2.2]
[1717031117525,2.1996,168.21,168.17,2.2]
[1717031118548,2.1995,168.22,168.18,2.2]
[1717031119446,2.1996,168.21,168.17,2.2]
[1717031120245,20.0,168.23,168.17,6.79]
[1717031120440,2.1995,168.22,168.18,2.1999]
[1717031120650,2.1998,168.2,168.14,4.4009]
[1717031120831,2.1998,168.2,168.16,8.9902]
[1717031121031,2.1998,168.2,168.16,2.2002]
[1717031121233,2.1998,168.2,168.16,8.9902]
[1717031121441,2.1999,168.19,168.15,2.2003]
[1717031121845,2.1999,168.19,168.14,6.79]
[1717031122032,2.1998,168.2,168.16,2.2002]
[1717031123534,2.1998,168.2,168.13,6.9651338]
[1717031123755,20.0,168.21,168.14,2.2004]
[1717031124047,2.1999,168.19,168.15,2.2003]
[1717031124253,8.3062,168.19,168.15,2.2003]
[1717031124442,8.3062,168.19,168.14,2.2004]
[1717031124752,8.3062,168.19,168.13,7.1532338]
[1717031124753,2.2,168.18,168.13,9.3538338]
[1717031124946,22.2,168.18,168.13,7.1532338]
[1717031125356,22.2,168.18,168.14,2.2004]
[1717031125821,2.2,168.18,168.13,2.5637338]
[1717031126027,2.2001,168.17,168.13,2.5637338]
[1717031126244,2.2001,168.17,168.13,9.3537338]
[1717031127147,2.2001,168.17,168.13,2.5637338]
[1717031127449,2.2001,168.17,168.13,9.3537338]
[1717031130253,2.2001,168.17,168.13,2.5637338]
[1717031131547,2.2003,168.16,168.13,0.3632338]
[1717031132856,2.2004,168.15,168.13,0.3632338]
[1717031134328,2.2005,168.14,168.13,0.3632338]
[1717031134533,6.5756,168.17,168.13,0.3632338]
[1717031134749,2.2005,168.14,168.13,0.3632338]
[1717031137765,8.7537,168.14,168.13,0.3632338]
[1717031137968,22.2005,168.14,168.13,0.3632338]
[1717031141360,28.9905,168.14,168.13,0.3632338]
[1717031141658,22.2005,168.14,168.13,0.3632338]
[1717031152470,21.9734,168.19,168.13,0.3632338]
[1717031152471,17.5529,168.19,168.13,0.3632338]
[1717031152672,22.9017,168.23,168.13,7.1532338]
[1717031152854,2.2,168.18,168.13,2.5638338]
[1717031153056,4.3991,168.22,168.15,2.2003]
[1717031153280,6.79,168.18,168.15,2.2003]
[1717031153575,6.79,168.18,168.14,2.2004]
[1717031154277,6.79,168.18,168.15,2.2003]
[1717031154475,2.1998,168.19,168.15,2.2003]
[1717031154677,6.79,168.18,168.15,2.2003]
[1717031154974,2.1998,168.2,168.16,2.2002]
[1717031155176,22.1996,168.21,168.16,2.2002]
[1717031155377,2.1997,168.2,168.16,2.2002]
[1717031155974,2.1997,168.2,168.15,2.2003]
[1717031157766,6.79,168.19,168.15,2.2003]
[1717031157957,2.2001,168.18,168.14,1.18304908]
[1717031158151,6.79,168.16,168.13,2.5638338]
[1717031158351,2.2001,168.18,168.13,2.5638338]
[1717031158572,8.9901,168.18,168.14,2.2004]
[1717031159073,2.2001,168.18,168.14,2.2004]
[1717031159259,8.9901,168.18,168.13,0.3632338]
[1717031159463,2.2001,168.18,168.13,2.5638338]
[1717031159672,2.2001,168.18,168.14,2.2005]
[1717031162559,2.1999,168.19,168.14,2.2005]
[1717031163276,20.0,168.21,168.14,6.9588139]
[1717031163277,22.1996,168.21,168.14,6.9588139]
[1717031163487,6.79,168.21,168.15,7.41682744]
[1717031164382,2.1998,168.2,168.15,9.61722744]
[1717031164582,8.9898,168.2,168.15,2.82722744]
[1717031165278,8.9898,168.2,168.15,2.2004]
[1717031165486,8.9899,168.19,168.14,8.5323]
[1717031166481,8.7951,168.28,168.18,6.79]
[1717031166675,6.79,168.25,168.19,6.79]
[1717031166979,2.1989,168.27,168.21,2.1995]
[1717031167481,2.1987,168.28,168.22,2.1994]
[1717031167687,2.1986,168.29,168.23,8.7858]
[1717031167863,2.1986,168.29,168.23,15.60138422]
[1717031167864,6.79,168.29,168.23,15.60138422]
[1717031168064,6.79,168.29,168.24,8.7857]
[1717031168267,2.1985,168.3,168.25,2.22461975]
[1717031168472,2.198,168.33,168.28,2.1987]
[1717031168684,2.198,168.33,168.27,2.1987]
[1717031168685,6.79,168.32,168.27,2.1987]
[1717031168857,6.79,168.3,168.26,2.1989]
[1717031169056,6.79,168.29,168.25,8.7855]
[1717031169279,6.79,168.3,168.25,8.7855]
[1717031169680,6.79,168.3,168.26,2.1989]
[1717031169878,4.3953,168.36,168.25,6.5865]
[1717031170180,28.33588773,168.39,168.28,6.79]
[1717031170181,2.1978,168.35,168.28,6.79]
[1717031170386,2.1976,168.36,168.28,6.79]
[1717031170568,6.79,168.34,168.28,6.79]
[1717031170889,2.1975,168.37,168.32,2.1981]
[1717031171084,2.1975,168.37,168.26,10.9946]
[1717031171085,2.1975,168.37,168.31,2.1982]
[1717031171465,6.79,168.36,168.31,2.1982]
[1717031171665,6.79,168.36,168.31,8.8052]
[1717031171865,6.79,168.36,168.32,2.1981]
[1717031172165,2.1974,168.38,168.32,2.1981]
[1717031172166,6.79,168.37,168.32,8.6503]
[1717031172385,6.79,168.38,168.33,8.6502]
[1717031172684,6.79,168.38,168.34,1.18748505]
[1717031173071,20.0,168.37,168.34,1.18776727]
[1717031173491,20.0,168.37,168.31,2.1982]
[1717031173492,22.1975,168.37,168.31,2.1982]
[1717031173670,4.3946,168.39,168.29,6.1061]
[1717031173885,6.79,168.33,168.29,6.1061]
[1717031174072,6.79,168.35,168.29,6.79]
[1717031174380,2.1972,168.39,168.34,2.1979]
[1717031174587,6.79,168.38,168.34,6.1061]
[1717031175193,2.1972,168.39,168.34,8.304]
[1717031175504,8.9874,168.38,168.34,6.1061]
[1717031176076,2.1974,168.38,168.32,2.1981]
[1717031177287,6.79,168.35,168.3,6.1061]
[1717031177468,6.79,168.35,168.31,2.1982]
[1717031177666,6.79,168.33,168.28,6.79]
[1717031177891,20.0,168.34,168.29,2.1984]
[1717031177892,6.79,168.34,168.29,2.1984]
[1717031178409,2.1982,168.32,168.26,2.1988]
[1717031178577,4.3956,168.35,168.2,22.9692]
[1717031178578,8.7922,168.33,168.2,22.9692]
[1717031178897,2.1988,168.27,168.22,2.1994]
[1717031179107,2.1989,168.26,168.21,2.1996]
[1717031179277,6.79,168.24,168.19,8.9897]
[1717031179472,8.9893,168.24,168.19,2.1997]
[1717031179988,8.9893,168.24,168.18,6.79]
[1717031179989,2.1993,168.23,168.18,8.9899]
[1717031180187,8.9892,168.24,168.18,2.1999]
[1717031180386,2.1993,168.23,168.18,8.9899]
[1717031180981,8.9892,168.24,168.18,8.9899]
[1717031181889,6.79,168.2,168.13,0.3632338]
[1717031182099,26.79,168.19,168.14,2.2005]
[1717031182304,26.79,168.19,168.13,7.1532338]
[1717031182506,28.9899,168.19,168.13,2.5638338]
[1717031182794,6.79,168.18,168.13,2.5638338]
[1717031182998,28.9899,168.19,168.14,2.2004]
[1717031183692,20.0,168.19,168.13,0.3632338]
[1717031183873,2.2,168.18,168.13,2.5638338]
[1717031184078,8.9899,168.19,168.13,2.5638338]
[1717031184388,20.0,168.18,168.14,2.2005]
[1717031185280,22.2,168.18,168.13,9.3538338]
[1717031185585,28.99,168.18,168.13,2.5638338]
[1717031187586,26.79,168.18,168.14,2.2005]
[1717031188487,20.0,168.18,168.14,2.2005]
[1717031188687,8.9899,168.19,168.14,2.2005]
[1717031188995,20.0,168.18,168.14,2.2005]
[1717031189301,20.0,168.18,168.15,2.2004]
[1717031189681,20.0,168.18,168.14,2.2004]
[1717031190198,2.2,168.18,168.14,2.2004]